[Event "GrandPrix_29.05"]
[Site "Chess.com"]
[Date "2020.05.29"]
[Round "2"]
[White "ZEN-22"]
[Black "Alexander_Donchenko"]
[Result "0-1"]
[WhiteElo "2246"]
[BlackElo "2692"]
[TimeControl "600+2"]
[EndTime "9:54:29 PDT"]
[Termination "Alexander_Donchenko won by checkmate"]

1. e4 {[%clk 0:10:01.9]} 1... c6 {[%clk 0:09:58.5]} 2. d3 {[%clk 0:09:45.2]}
2... d5 {[%clk 0:09:59.1]} 3. Nd2 {[%clk 0:09:45.9]} 3... e5 {[%clk 0:09:59.2]}
4. Ngf3 {[%clk 0:09:46.6]} 4... Bd6 {[%clk 0:09:59.8]} 5. g3 {[%clk 0:09:35.6]}
5... Nf6 {[%clk 0:10:00.6]} 6. Bg2 {[%clk 0:09:36.6]} 6... O-O {[%clk
0:10:01.6]} 7. O-O {[%clk 0:09:36.9]} 7... Re8 {[%clk 0:10:03.1]} 8. Re1 {[%clk
0:09:30.4]} 8... a5 {[%clk 0:10:03.4]} 9. d4 {[%clk 0:08:59.7]} 9... dxe4 {[%clk
0:09:04.6]} 10. Nxe5 {[%clk 0:08:57.1]} 10... Bxe5 {[%clk 0:09:05.5]} 11. dxe5
{[%clk 0:08:57.1]} 11... Bg4 {[%clk 0:09:06.8]} 12. f3 {[%clk 0:08:52.5]} 12...
exf3 {[%clk 0:09:05.9]} 13. Bxf3 {[%clk 0:08:33.8]} 13... Bxf3 {[%clk
0:08:37.6]} 14. Nxf3 {[%clk 0:08:26.6]} 14... Nd5 {[%clk 0:08:23]} 15. c4 {[%clk
0:08:04.4]} 15... Nc7 {[%clk 0:08:16.9]} 16. Qc2 {[%clk 0:07:48.1]} 16... Ne6
{[%clk 0:08:07.5]} 17. h4 {[%clk 0:07:37]} 17... Nd7 {[%clk 0:07:23.3]} 18. Bg5
{[%clk 0:06:36.4]} 18... Qc7 {[%clk 0:07:11.6]} 19. Rad1 {[%clk 0:06:33.9]}
19... a4 {[%clk 0:06:55.3]} 20. Kg2 {[%clk 0:06:14.3]} 20... h6 {[%clk
0:05:52.4]} 21. Bd2 {[%clk 0:05:53.2]} 21... Ndc5 {[%clk 0:05:47.3]} 22. Bc3
{[%clk 0:05:52.6]} 22... Rad8 {[%clk 0:05:42.7]} 23. b4 {[%clk 0:05:39.6]} 23...
axb3 {[%clk 0:05:41.8]} 24. axb3 {[%clk 0:05:40.7]} 24... Rxd1 {[%clk
0:05:31.5]} 25. Rxd1 {[%clk 0:05:40.7]} 25... Rd8 {[%clk 0:05:29.5]} 26. Bb4
{[%clk 0:05:08.2]} 26... Rxd1 {[%clk 0:05:16.1]} 27. Qxd1 {[%clk 0:05:08.3]}
27... Qb6 {[%clk 0:05:14.2]} 28. Bxc5 {[%clk 0:04:57.4]} 28... Qxc5 {[%clk
0:05:14.8]} 29. Qd7 {[%clk 0:04:50.9]} 29... Qe3 {[%clk 0:05:07.1]} 30. Qd1
{[%clk 0:04:18]} 30... c5 {[%clk 0:04:53.5]} 31. h5 {[%clk 0:04:07.4]} 31... Qe4
{[%clk 0:04:28.6]} 32. Qd5 {[%clk 0:03:56.6]} 32... Qc2+ {[%clk 0:04:05]} 33.
Kh3 {[%clk 0:03:57]} 33... Qxb3 {[%clk 0:04:00.3]} 34. Qe4 {[%clk 0:03:37]}
34... Kf8 {[%clk 0:03:46.4]} 35. Kg4 {[%clk 0:03:33.6]} 35... Qb4 {[%clk
0:03:10.5]} 36. Qd5 {[%clk 0:03:29.9]} 36... Kg8 {[%clk 0:03:05.9]} 37. Kh4
{[%clk 0:03:14.9]} 37... b5 {[%clk 0:02:51.7]} 38. Nd2 {[%clk 0:03:12.4]} 38...
bxc4 {[%clk 0:02:06]} 39. Nxc4 {[%clk 0:03:10.6]} 39... Qb1 {[%clk 0:01:52.9]}
40. Ne3 {[%clk 0:02:38.3]} 40... Ng5 {[%clk 0:01:43.7]} 41. Qc6 {[%clk
0:02:25.8]} 41... Kh7 {[%clk 0:01:23.2]} 42. Kg4 {[%clk 0:02:11.7]} 42... Qb4+
{[%clk 0:01:14.9]} 43. Kf5 {[%clk 0:02:12.5]} 43... Qd4 {[%clk 0:01:04.7]} 44.
Ng4 {[%clk 0:01:55.4]} 44... Qd3+ {[%clk 0:01:03.4]} 45. Kf4 {[%clk 0:01:55.8]}
45... Nh3# {[%clk 0:01:04.5]} 0-1

[Event "GrandPrix_29.05"]
[Site "Chess.com"]
[Date "2020.05.29"]
[Round "2"]
[White "eristeski7"]
[Black "SantoBlue"]
[Result "0-1"]
[WhiteElo "2097"]
[BlackElo "2417"]
[TimeControl "600+2"]
[EndTime "9:54:29 PDT"]
[Termination "SantoBlue won by resignation"]

1. e4 {[%clk 0:10:01.9]} 1... d6 {[%clk 0:09:59.3]} 2. d4 {[%clk 0:10:01.4]}
2... Nf6 {[%clk 0:09:59.6]} 3. Nc3 {[%clk 0:10:02.8]} 3... e5 {[%clk 0:10:00]}
4. Nge2 {[%clk 0:10:03.4]} 4... Nbd7 {[%clk 0:10:00.1]} 5. g3 {[%clk 0:10:03.5]}
5... Be7 {[%clk 0:10:01.1]} 6. Bg2 {[%clk 0:10:04.2]} 6... c6 {[%clk 0:10:00.2]}
7. a4 {[%clk 0:10:04.4]} 7... O-O {[%clk 0:09:53.4]} 8. O-O {[%clk 0:10:03]}
8... Re8 {[%clk 0:09:51.9]} 9. h3 {[%clk 0:10:01.9]} 9... h5 {[%clk 0:09:52.5]}
10. f4 {[%clk 0:09:52.8]} 10... exd4 {[%clk 0:09:35.9]} 11. Nxd4 {[%clk
0:09:50.7]} 11... Bf8 {[%clk 0:09:31.9]} 12. Re1 {[%clk 0:09:14.1]} 12... Nc5
{[%clk 0:09:18]} 13. b4 {[%clk 0:07:55.1]} 13... Ne6 {[%clk 0:09:14.9]} 14. b5
{[%clk 0:07:49.7]} 14... Qa5 {[%clk 0:08:59.1]} 15. Nxe6 {[%clk 0:07:02.3]}
15... Bxe6 {[%clk 0:08:52]} 16. Bd2 {[%clk 0:06:40.4]} 16... Qc7 {[%clk
0:08:51.2]} 17. f5 {[%clk 0:05:36.2]} 17... Bc4 {[%clk 0:08:48.4]} 18. Bf4
{[%clk 0:05:29.4]} 18... cxb5 {[%clk 0:08:14.4]} 19. axb5 {[%clk 0:04:08.1]}
19... Nd7 {[%clk 0:08:04.3]} 20. Qxh5 {[%clk 0:03:38.1]} 20... Qc5+ {[%clk
0:07:35.8]} 21. Kh2 {[%clk 0:02:51]} 21... Bxb5 {[%clk 0:06:43.5]} 22. Nxb5
{[%clk 0:02:52.9]} 22... Qxb5 {[%clk 0:06:44.4]} 23. g4 {[%clk 0:02:52.1]} 23...
Rac8 {[%clk 0:05:53.1]} 24. Rac1 {[%clk 0:01:50]} 24... Ne5 {[%clk 0:04:57.3]}
25. g5 {[%clk 0:01:39]} 25... g6 {[%clk 0:04:58.2]} 26. Qd1 {[%clk 0:01:07.1]}
26... Rc3 {[%clk 0:04:40.8]} 27. Bd2 {[%clk 0:00:51]} 27... Ra3 {[%clk
0:04:37.3]} 28. Be3 {[%clk 0:00:42.4]} 28... d5 {[%clk 0:04:30.1]} 29. Qxd5
{[%clk 0:00:35.9]} 29... Qxd5 {[%clk 0:04:09.5]} 30. exd5 {[%clk 0:00:37.8]}
30... Bd6 {[%clk 0:03:55.2]} 31. Kh1 {[%clk 0:00:37.5]} 31... Nf3 {[%clk
0:03:46.7]} 32. Bxf3 {[%clk 0:00:36.5]} 32... Raxe3 {[%clk 0:03:47.8]} 33. Rxe3
{[%clk 0:00:36.8]} 33... Rxe3 {[%clk 0:03:49.7]} 34. Kg2 {[%clk 0:00:37.2]}
34... gxf5 {[%clk 0:03:47.5]} 35. c4 {[%clk 0:00:35.9]} 35... b6 {[%clk
0:03:44.1]} 36. Rc2 {[%clk 0:00:26.8]} 36... Kg7 {[%clk 0:03:44.3]} 37. h4
{[%clk 0:00:25.9]} 37... a5 {[%clk 0:03:43.7]} 38. Kf2 {[%clk 0:00:21.9]} 38...
Bc5 {[%clk 0:03:44.5]} 39. Kg2 {[%clk 0:00:22.7]} 39... a4 {[%clk 0:03:45.4]}
40. Rd2 {[%clk 0:00:21.3]} 40... Bd6 {[%clk 0:03:35.9]} 41. h5 {[%clk
0:00:19.2]} 41... a3 {[%clk 0:03:34.4]} 42. Rc2 {[%clk 0:00:19.2]} 42... f4
{[%clk 0:03:32.9]} 43. Kf2 {[%clk 0:00:19.1]} 43... Bc5 {[%clk 0:03:31.8]} 44.
Kg2 {[%clk 0:00:20]} 44... Re5 {[%clk 0:03:33]} 45. h6+ {[%clk 0:00:19.6]} 45...
Kg6 {[%clk 0:03:34.9]} 46. Rd2 {[%clk 0:00:16.9]} 46... Rxg5+ {[%clk 0:03:35.2]}
47. Kh2 {[%clk 0:00:15.4]} 47... Bg1+ {[%clk 0:03:32.2]} 48. Kh1 {[%clk
0:00:14]} 48... Be3 {[%clk 0:03:33.1]} 49. d6 {[%clk 0:00:11.8]} 49... Bxd2
{[%clk 0:03:27.1]} 50. d7 {[%clk 0:00:12.8]} 50... a2 {[%clk 0:03:28.7]} 51.
d8=Q {[%clk 0:00:14]} 51... a1=Q+ {[%clk 0:03:29.5]} 52. Bd1 {[%clk 0:00:14.5]}
52... Qxd1+ {[%clk 0:03:30.4]} 0-1

[Event "GrandPrix_29.05"]
[Site "Chess.com"]
[Date "2020.05.29"]
[Round "2"]
[White "etserga"]
[Black "Elshadchess"]
[Result "1-0"]
[WhiteElo "2124"]
[BlackElo "1187"]
[TimeControl "600+2"]
[EndTime "9:54:35 PDT"]
[Termination "etserga won by resignation"]

1. Nf3 {[%clk 0:09:46.5]} 1... d5 {[%clk 0:09:59.5]} 2. e3 {[%clk 0:09:46.2]}
2... Nc6 {[%clk 0:09:59.9]} 3. d4 {[%clk 0:09:45.5]} 3... Bg4 {[%clk 0:10:00.2]}
4. Bb5 {[%clk 0:09:43.1]} 4... e6 {[%clk 0:10:00.4]} 5. Nbd2 {[%clk 0:09:36.3]}
5... Ne7 {[%clk 0:09:54.8]} 6. h3 {[%clk 0:09:32.4]} 6... Bh5 {[%clk 0:09:34.7]}
7. O-O {[%clk 0:09:24.4]} 7... a6 {[%clk 0:09:34.2]} 8. Be2 {[%clk 0:09:23.8]}
8... Bg6 {[%clk 0:08:54.2]} 9. Nh4 {[%clk 0:09:10.3]} 9... Nf5 {[%clk
0:08:37.5]} 10. Nxg6 {[%clk 0:09:08.1]} 10... hxg6 {[%clk 0:08:39.4]} 11. c3
{[%clk 0:09:07.5]} 11... Bd6 {[%clk 0:08:37.9]} 12. e4 {[%clk 0:08:59]} 12...
Nh4 {[%clk 0:08:16.8]} 13. f4 {[%clk 0:07:52.9]} 13... dxe4 {[%clk 0:07:27.2]}
14. Nxe4 {[%clk 0:07:50]} 14... Ne7 {[%clk 0:07:15.3]} 15. Qe1 {[%clk
0:07:03.2]} 15... Nd5 {[%clk 0:06:32.3]} 16. Bd1 {[%clk 0:06:44.7]} 16... Be7
{[%clk 0:06:13.9]} 17. Bb3 {[%clk 0:06:26.5]} 17... Qd7 {[%clk 0:05:42.3]} 18.
Bd2 {[%clk 0:06:23.8]} 18... b6 {[%clk 0:05:33.1]} 19. Rd1 {[%clk 0:06:21.4]}
19... a5 {[%clk 0:05:23.8]} 20. a4 {[%clk 0:05:59.7]} 20... b5 {[%clk
0:05:12.5]} 21. Ra1 {[%clk 0:05:46.5]} 21... Rb8 {[%clk 0:04:53.4]} 22. axb5
{[%clk 0:05:38.9]} 22... Kf8 {[%clk 0:04:27.4]} 23. Rxa5 {[%clk 0:05:28]} 23...
Rh5 {[%clk 0:04:05.5]} 24. Ng3 {[%clk 0:04:58.7]} 24... Rh8 {[%clk 0:03:57.8]}
25. c4 {[%clk 0:04:46]} 25... Nb6 {[%clk 0:03:55.8]} 26. Bc3 {[%clk 0:04:29.9]}
26... Bf6 {[%clk 0:03:55.6]} 27. Qe4 {[%clk 0:04:19.3]} 27... Nf5 {[%clk
0:03:32.1]} 28. Nxf5 {[%clk 0:04:17]} 28... gxf5 {[%clk 0:03:34]} 29. Qe3 {[%clk
0:04:15.5]} 29... Rd8 {[%clk 0:03:31.6]} 30. Rd1 {[%clk 0:04:14.4]} 30... Rh4
{[%clk 0:03:30.3]} 31. Raa1 {[%clk 0:04:07.2]} 31... c6 {[%clk 0:03:16.8]} 32.
d5 {[%clk 0:03:47.9]} 32... Nxc4 {[%clk 0:02:09.6]} 33. Bxc4 {[%clk 0:03:43.8]}
33... cxd5 {[%clk 0:02:10.6]} 34. Bxf6 {[%clk 0:03:30.4]} 34... gxf6 {[%clk
0:02:12.5]} 35. Bf1 {[%clk 0:03:24.8]} 35... Rh6 {[%clk 0:01:38.9]} 36. Ra7
{[%clk 0:03:19]} 36... Qc8 {[%clk 0:01:15.1]} 37. Qa3+ {[%clk 0:03:16.6]} 37...
Kg8 {[%clk 0:01:15.6]} 38. Qe7 {[%clk 0:03:16.2]} 38... Rf8 {[%clk 0:01:11.7]}
39. Rd3 {[%clk 0:03:16.7]} 39... Rg6 {[%clk 0:01:09.8]} 40. Qc7 {[%clk
0:03:15.6]} 40... Qe8 {[%clk 0:01:06.1]} 41. Rb3 {[%clk 0:03:12.4]} 41... e5
{[%clk 0:01:05.8]} 42. b6 {[%clk 0:03:12.4]} 42... exf4 {[%clk 0:01:04.8]} 43.
b7 {[%clk 0:03:13]} 43... f3 {[%clk 0:00:36.2]} 44. Rxf3 {[%clk 0:03:10]} 44...
Qe4 {[%clk 0:00:28.2]} 45. b8=Q {[%clk 0:03:00.9]} 45... Rg7 {[%clk 0:00:09.7]}
1-0

[Event "GrandPrix_29.05"]
[Site "Chess.com"]
[Date "2020.05.29"]
[Round "2"]
[White "OK97"]
[Black "Korchmar_Vasiliy"]
[Result "1-0"]
[WhiteElo "2541"]
[BlackElo "2046"]
[TimeControl "600+2"]
[EndTime "9:54:40 PDT"]
[Termination "OK97 won by resignation"]

1. e4 {[%clk 0:10:01.9]} 1... c5 {[%clk 0:09:59.7]} 2. Nf3 {[%clk 0:10:02.6]}
2... d6 {[%clk 0:10:00.2]} 3. d4 {[%clk 0:10:03.6]} 3... cxd4 {[%clk 0:10:02.1]}
4. Nxd4 {[%clk 0:10:05.3]} 4... Nf6 {[%clk 0:10:02.6]} 5. Nc3 {[%clk 0:10:06.4]}
5... Nc6 {[%clk 0:10:03.4]} 6. Bg5 {[%clk 0:10:04.1]} 6... e6 {[%clk 0:10:04]}
7. Bb5 {[%clk 0:10:01.6]} 7... Bd7 {[%clk 0:10:03.6]} 8. Qd3 {[%clk 0:10:01.2]}
8... Be7 {[%clk 0:09:53.9]} 9. O-O-O {[%clk 0:09:59.5]} 9... O-O {[%clk
0:09:50.9]} 10. Bxc6 {[%clk 0:09:58.6]} 10... bxc6 {[%clk 0:09:05.4]} 11. Nb3
{[%clk 0:09:58.5]} 11... d5 {[%clk 0:08:39.8]} 12. e5 {[%clk 0:09:57.8]} 12...
Ne8 {[%clk 0:08:18.9]} 13. Bxe7 {[%clk 0:09:44.9]} 13... Qxe7 {[%clk 0:08:20.8]}
14. Qd4 {[%clk 0:09:41.5]} 14... f6 {[%clk 0:07:33.4]} 15. Rhe1 {[%clk
0:08:30.7]} 15... fxe5 {[%clk 0:07:13.8]} 16. Rxe5 {[%clk 0:08:32.6]} 16... Nd6
{[%clk 0:07:15.1]} 17. Qc5 {[%clk 0:07:26.8]} 17... Rab8 {[%clk 0:04:27.3]} 18.
Rde1 {[%clk 0:07:10.9]} 18... Rf4 {[%clk 0:04:00.3]} 19. Qxa7 {[%clk 0:06:28.2]}
19... Rb7 {[%clk 0:03:57]} 20. Qe3 {[%clk 0:06:21]} 20... Rfb4 {[%clk
0:03:45.9]} 21. Qc5 {[%clk 0:05:47.2]} 21... Rc4 {[%clk 0:03:37.1]} 22. Qa3
{[%clk 0:05:16.4]} 22... c5 {[%clk 0:03:13.6]} 23. Nxc5 {[%clk 0:04:14.9]} 23...
Rb8 {[%clk 0:00:29.8]} 24. Nxd5 {[%clk 0:02:53]} 24... Qf7 {[%clk 0:00:29.7]}
25. Nxd7 {[%clk 0:02:14.8]} 25... Qxd7 {[%clk 0:00:30.8]} 26. Rxe6 {[%clk
0:02:05]} 26... Nb5 {[%clk 0:00:11.7]} 27. Nf6+ {[%clk 0:01:52.9]} 27... gxf6
{[%clk 0:00:10.7]} 28. Qg3+ {[%clk 0:01:53.9]} 28... Kf7 {[%clk 0:00:06]} 29.
Re7+ {[%clk 0:01:36.4]} 29... Qxe7 {[%clk 0:00:07]} 30. Rxe7+ {[%clk 0:01:38.1]}
30... Kxe7 {[%clk 0:00:08.9]} 31. Qxb8 {[%clk 0:01:39.3]} 1-0

[Event "GrandPrix_29.05"]
[Site "Chess.com"]
[Date "2020.05.29"]
[Round "2"]
[White "MasterSonnevanck2"]
[Black "Poghosyan_Suren"]
[Result "1-0"]
[WhiteElo "2042"]
[BlackElo "2143"]
[TimeControl "600+2"]
[EndTime "9:54:40 PDT"]
[Termination "MasterSonnevanck2 won by resignation"]

1. d4 {[%clk 0:10:01.9]} 1... Nf6 {[%clk 0:09:56.3]} 2. c4 {[%clk 0:10:02.2]}
2... c5 {[%clk 0:09:56.3]} 3. d5 {[%clk 0:10:02.1]} 3... b5 {[%clk 0:09:56.4]}
4. Qc2 {[%clk 0:10:02.5]} 4... bxc4 {[%clk 0:09:55.2]} 5. e4 {[%clk 0:10:03.4]}
5... g6 {[%clk 0:09:55.8]} 6. Bxc4 {[%clk 0:10:03.4]} 6... d6 {[%clk 0:09:55.8]}
7. Nc3 {[%clk 0:10:03.2]} 7... Bg7 {[%clk 0:09:50.1]} 8. Nf3 {[%clk 0:10:04.5]}
8... O-O {[%clk 0:09:45.8]} 9. O-O {[%clk 0:10:01]} 9... Nbd7 {[%clk 0:09:15.3]}
10. h3 {[%clk 0:10:00.9]} 10... Nb6 {[%clk 0:09:15.5]} 11. Be2 {[%clk
0:10:00.9]} 11... e6 {[%clk 0:09:15.5]} 12. dxe6 {[%clk 0:09:59.8]} 12... Bxe6
{[%clk 0:09:16.7]} 13. Be3 {[%clk 0:09:58.4]} 13... Nc4 {[%clk 0:09:03.2]} 14.
Bf4 {[%clk 0:09:08.8]} 14... Nh5 {[%clk 0:06:47.5]} 15. Bh2 {[%clk 0:08:53.9]}
15... Qf6 {[%clk 0:06:48.4]} 16. e5 {[%clk 0:08:20.8]} 16... Nxe5 {[%clk
0:05:39.7]} 17. Nxe5 {[%clk 0:08:04.9]} 17... dxe5 {[%clk 0:05:39.3]} 18. Ne4
{[%clk 0:07:52.8]} 18... Qh4 {[%clk 0:05:19.5]} 19. Bxh5 {[%clk 0:07:12.6]}
19... gxh5 {[%clk 0:04:57.5]} 20. Bg3 {[%clk 0:06:34.3]} 20... Qe7 {[%clk
0:04:26]} 21. Qxc5 {[%clk 0:06:33.8]} 21... Qb7 {[%clk 0:04:22.8]} 22. Qe3
{[%clk 0:05:22.4]} 22... Qxb2 {[%clk 0:04:05.1]} 23. Qg5 {[%clk 0:04:43.1]}
23... f5 {[%clk 0:02:27.6]} 24. Nc5 {[%clk 0:04:23.5]} 24... h6 {[%clk
0:01:43.6]} 25. Qxh5 {[%clk 0:02:41.4]} 25... Bf7 {[%clk 0:01:41.5]} 26. Qxf5
{[%clk 0:02:42]} 26... Bc4 {[%clk 0:01:42.1]} 27. Qg6 {[%clk 0:02:24.4]} 27...
Rf6 {[%clk 0:01:28.9]} 28. Qg4 {[%clk 0:02:00.2]} 28... Be2 {[%clk 0:01:00.4]}
29. Qe4 {[%clk 0:01:54.5]} 29... Rc8 {[%clk 0:00:16.7]} 30. Bxe5 {[%clk
0:01:41.6]} 30... Re8 {[%clk 0:00:15.6]} 31. Bxb2 {[%clk 0:01:36.4]} 1-0

[Event "GrandPrix_29.05"]
[Site "Chess.com"]
[Date "2020.05.29"]
[Round "2"]
[White "Tesla37"]
[Black "Arseniy_Nesterov"]
[Result "1-0"]
[WhiteElo "2732"]
[BlackElo "2301"]
[TimeControl "600+2"]
[EndTime "9:54:43 PDT"]
[Termination "Tesla37 won by resignation"]

1. e4 {[%clk 0:10:01.9]} 1... e5 {[%clk 0:10:00.4]} 2. Nf3 {[%clk 0:10:01.4]}
2... Nc6 {[%clk 0:10:01.1]} 3. Bb5 {[%clk 0:10:01.2]} 3... Nf6 {[%clk
0:10:01.5]} 4. d3 {[%clk 0:10:01.7]} 4... Bc5 {[%clk 0:10:01.1]} 5. c3 {[%clk
0:10:01.2]} 5... O-O {[%clk 0:09:34.8]} 6. O-O {[%clk 0:09:58.9]} 6... d6 {[%clk
0:09:30.8]} 7. Nbd2 {[%clk 0:09:51.5]} 7... Bb6 {[%clk 0:09:29.8]} 8. a4 {[%clk
0:09:41.7]} 8... a6 {[%clk 0:09:18]} 9. Bc4 {[%clk 0:09:39.7]} 9... Re8 {[%clk
0:08:52.2]} 10. h3 {[%clk 0:09:04.5]} 10... Be6 {[%clk 0:08:38.6]} 11. Re1
{[%clk 0:08:59.5]} 11... h6 {[%clk 0:08:34.9]} 12. b4 {[%clk 0:08:44.9]} 12...
d5 {[%clk 0:08:09.9]} 13. exd5 {[%clk 0:07:50.1]} 13... Nxd5 {[%clk 0:07:53.5]}
14. Ne4 {[%clk 0:07:49.2]} 14... f5 {[%clk 0:06:54.6]} 15. Ng3 {[%clk
0:07:21.4]} 15... Qf6 {[%clk 0:05:45]} 16. Bd2 {[%clk 0:06:13.3]} 16... Qg6
{[%clk 0:04:29.1]} 17. d4 {[%clk 0:05:12.3]} 17... f4 {[%clk 0:03:02.7]} 18. Nf1
{[%clk 0:04:50.4]} 18... e4 {[%clk 0:01:02]} 19. Nh4 {[%clk 0:04:25.1]} 19...
Qh7 {[%clk 0:01:02]} 20. Bxd5 {[%clk 0:04:11.7]} 20... Bxd5 {[%clk 0:01:02.3]}
21. Bxf4 {[%clk 0:04:13.1]} 21... g5 {[%clk 0:01:01.6]} 22. Ne3 {[%clk
0:04:14.1]} 22... Bf7 {[%clk 0:00:47.3]} 23. Ng4 {[%clk 0:03:16.7]} 23... Kh8
{[%clk 0:00:24.6]} 24. Nf6 {[%clk 0:03:10.9]} 24... Qg7 {[%clk 0:00:24.6]} 25.
Nxe8 {[%clk 0:03:06.9]} 25... Rxe8 {[%clk 0:00:25.9]} 26. Bg3 {[%clk 0:02:46.3]}
26... gxh4 {[%clk 0:00:25.2]} 27. Bxh4 {[%clk 0:02:47.4]} 27... Qg6 {[%clk
0:00:21.1]} 28. Bg3 {[%clk 0:02:44.8]} 28... Ne7 {[%clk 0:00:19.7]} 29. a5
{[%clk 0:02:44.5]} 29... Ba7 {[%clk 0:00:20.7]} 30. Bxc7 {[%clk 0:02:39.6]}
30... Rg8 {[%clk 0:00:08]} 31. Bg3 {[%clk 0:02:31.3]} 31... Nf5 {[%clk 0:00:08]}
32. Rxe4 {[%clk 0:02:27]} 32... Nxg3 {[%clk 0:00:09]} 33. Rg4 {[%clk 0:02:27.8]}
33... Qf6 {[%clk 0:00:05.9]} 34. fxg3 {[%clk 0:02:24]} 34... Rc8 {[%clk
0:00:06.5]} 35. Qd2 {[%clk 0:02:21.2]} 35... Bd5 {[%clk 0:00:07]} 36. Rf1 {[%clk
0:02:20.3]} 36... Qe6 {[%clk 0:00:06.9]} 37. Rgf4 {[%clk 0:02:14.4]} 37... Rg8
{[%clk 0:00:07.6]} 38. Rf6 {[%clk 0:02:11.6]} 1-0

[Event "GrandPrix_29.05"]
[Site "Chess.com"]
[Date "2020.05.29"]
[Round "2"]
[White "SipkeErnst"]
[Black "Natalya_Buksa"]
[Result "1-0"]
[WhiteElo "2030"]
[BlackElo "2139"]
[TimeControl "600+2"]
[EndTime "9:54:45 PDT"]
[Termination "SipkeErnst won by resignation"]

1. d4 {[%clk 0:10:01.9]} 1... d5 {[%clk 0:09:57.4]} 2. c4 {[%clk 0:10:02.3]}
2... e6 {[%clk 0:09:58.2]} 3. Nf3 {[%clk 0:10:01.4]} 3... Nf6 {[%clk 0:09:58.9]}
4. g3 {[%clk 0:10:02.4]} 4... Bb4+ {[%clk 0:09:59.6]} 5. Bd2 {[%clk 0:10:02.9]}
5... Be7 {[%clk 0:10:00.7]} 6. Bg2 {[%clk 0:10:04.1]} 6... O-O {[%clk
0:10:01.6]} 7. O-O {[%clk 0:10:05.6]} 7... Nbd7 {[%clk 0:10:01.3]} 8. Qc2 {[%clk
0:10:05.7]} 8... c6 {[%clk 0:10:02.1]} 9. b3 {[%clk 0:09:57]} 9... a5 {[%clk
0:09:59.2]} 10. Nc3 {[%clk 0:09:47.2]} 10... h6 {[%clk 0:09:23.3]} 11. Rad1
{[%clk 0:09:34.9]} 11... b6 {[%clk 0:09:22]} 12. e4 {[%clk 0:09:31.8]} 12...
dxe4 {[%clk 0:09:20.7]} 13. Nxe4 {[%clk 0:09:31.9]} 13... Bb7 {[%clk 0:09:11.2]}
14. Ne5 {[%clk 0:09:25.5]} 14... Rc8 {[%clk 0:09:06.7]} 15. Bf4 {[%clk
0:09:06.7]} 15... Ba8 {[%clk 0:08:28.8]} 16. Rfe1 {[%clk 0:08:52.8]} 16... Nxe4
{[%clk 0:07:45.2]} 17. Bxe4 {[%clk 0:08:51.5]} 17... Bb4 {[%clk 0:07:46]} 18.
Bd2 {[%clk 0:08:23]} 18... Qe7 {[%clk 0:07:00.5]} 19. Nd3 {[%clk 0:07:22.3]}
19... Bxd2 {[%clk 0:06:44.1]} 20. Qxd2 {[%clk 0:07:17.1]} 20... Rfd8 {[%clk
0:06:25.6]} 21. Bg2 {[%clk 0:07:11.6]} 21... Qf6 {[%clk 0:05:29.4]} 22. Qe3
{[%clk 0:06:53.2]} 22... Qg5 {[%clk 0:04:32.1]} 23. f4 {[%clk 0:06:49]} 23...
Qf6 {[%clk 0:04:29.5]} 24. c5 {[%clk 0:06:42.7]} 24... Bb7 {[%clk 0:04:24.9]}
25. a3 {[%clk 0:06:19.1]} 25... bxc5 {[%clk 0:04:08.4]} 26. dxc5 {[%clk
0:06:19.3]} 26... Ba6 {[%clk 0:04:03.6]} 27. Ne5 {[%clk 0:06:19.5]} 27... Nxe5
{[%clk 0:04:04.3]} 28. fxe5 {[%clk 0:06:19.9]} 28... Qe7 {[%clk 0:04:04.3]} 29.
Rd6 {[%clk 0:06:20.1]} 29... Qb7 {[%clk 0:03:58.9]} 30. Bxc6 {[%clk 0:06:03.7]}
30... Qa7 {[%clk 0:03:53.4]} 31. Rxd8+ {[%clk 0:05:51.1]} 31... Rxd8 {[%clk
0:03:53.3]} 32. Be4 {[%clk 0:05:50.8]} 32... Rc8 {[%clk 0:03:47.6]} 33. c6
{[%clk 0:05:42.7]} 33... Qb8 {[%clk 0:03:42.2]} 34. Rc1 {[%clk 0:04:55.6]} 34...
g6 {[%clk 0:03:23.9]} 35. Rc5 {[%clk 0:04:44.7]} 35... Qb6 {[%clk 0:03:23.8]}
36. Kf2 {[%clk 0:04:37.9]} 36... Bb5 {[%clk 0:03:20.8]} 37. Rc3 {[%clk
0:04:27.8]} 37... Qd8 {[%clk 0:03:05.7]} 38. a4 {[%clk 0:04:20.7]} 38... Ba6
{[%clk 0:03:06.6]} 39. Bf3 {[%clk 0:04:11.1]} 39... Rc7 {[%clk 0:02:54.6]} 40.
Rc2 {[%clk 0:04:02]} 40... h5 {[%clk 0:02:40]} 41. Rd2 {[%clk 0:03:57.6]} 41...
Qb8 {[%clk 0:02:41.1]} 42. Rd7 {[%clk 0:03:42.6]} 42... Rc8 {[%clk 0:02:19]} 43.
Qa7 {[%clk 0:03:15.4]} 43... Qxe5 {[%clk 0:01:49.2]} 44. Qxa6 {[%clk 0:03:13.8]}
44... Qc5+ {[%clk 0:01:50.2]} 45. Kg2 {[%clk 0:03:11.3]} 45... Qc2+ {[%clk
0:01:45.1]} 46. Kf1 {[%clk 0:02:40.2]} 46... Rb8 {[%clk 0:01:10.2]} 47. c7
{[%clk 0:02:26.8]} 47... Qc1+ {[%clk 0:01:11.2]} 48. Kg2 {[%clk 0:02:12.7]}
48... Qc2+ {[%clk 0:00:52.6]} 49. Qe2 {[%clk 0:02:10.5]} 1-0